bitfinex/quotes_ETHUSD_20220220
["timestamp","ask_amount","ask_price","bid_price","bid_amount"]
[1645348487044,1.454,2631.4,2630.8,0.54737771]
[1645348487244,0.454,2631.4,2631.1,0.00083762]
[1645348487441,1.454,2631.4,2631.1,0.00083762]
[1645348487843,0.454,2631.4,2630.8,0.54737771]
[1645348488343,1.90284,2631.8,2631.1,0.00083762]
[1645348488344,1.0,2631.7,2631.1,0.00083762]
[1645348488746,0.09038,2632.0,2631.1,0.00083762]
[1645348488943,1.0,2632.1,2631.1,0.00083762]
[1645348489142,1.09035,2632.3,2631.6,1.10259535]
[1645348489343,0.09035,2632.3,2631.6,1.10259535]
[1645348489843,2.11346832,2632.4,2631.6,1.10259535]
[1645348490314,2.11346832,2632.4,2630.6,3.5]
[1645348490519,2.11346832,2632.4,2630.6,0.3]
[1645348490816,2.11346832,2632.4,2631.9,0.00083738]
[1645348491012,2.71346832,2632.4,2631.9,0.00083738]
[1645348491414,2.71346832,2632.4,2630.5,7.1817]
[1645348491619,2.71346832,2632.4,2631.2,0.89822385]
[1645348491620,0.95322748,2632.2,2631.2,0.89822385]
[1645348491817,0.09031,2632.1,2632.0,0.00083733]
[1645348492418,1.55121,2632.2,2632.0,0.00083733]
[1645348492722,1.55121,2632.2,2631.2,0.89822385]
[1645348492916,0.95121,2632.2,2631.9,0.00083736]
[1645348493917,0.95121,2632.2,2631.2,0.89822385]
[1645348494145,2.20255,2632.2,2631.9,0.00083736]
[1645348494442,0.454,2632.1,2631.9,0.00083736]
[1645348494849,1.454,2632.1,2631.9,0.00083736]
[1645348495042,0.454,2632.1,2630.7,0.1899]
[1645348495251,1.454,2632.1,2630.7,0.1899]
[1645348495444,1.54441,2632.1,2631.9,0.00083738]
[1645348495844,1.63052616,2632.1,2631.9,0.00083738]
[1645348496243,1.63052616,2632.1,2630.7,0.1899]
[1645348496244,1.08348401,2632.0,2630.9,1.11667657]
[1645348496445,0.95137,2631.8,2630.9,1.11667657]
[1645348496644,0.454,2631.7,2630.9,1.11667657]
[1645348496845,0.754,2631.7,2630.9,1.11667657]
[1645348497244,1.054,2631.7,2630.9,1.11667657]
[1645348497892,1.054,2631.7,2631.2,0.0008376]
[1645348498187,0.754,2631.7,2631.2,0.0008376]
[1645348498388,0.454,2631.7,2631.2,0.0008376]
[1645348498788,0.454,2631.7,2631.3,1.03862885]
[1645348498999,1.09046,2631.9,2631.3,1.0394664]
[1645348499199,1.0,2631.9,2631.3,1.0394664]
[1645348499391,1.454,2632.7,2631.3,1.0394664]
[1645348499594,1.754,2632.7,2631.3,1.0394664]
[1645348499790,1.03945301,2632.6,2631.7,0.89112985]
[1645348499990,1.03945301,2632.6,2630.7,0.1899]
[1645348500191,0.54424,2632.5,2631.9,0.00083738]
[1645348500494,5.40271,2632.4,2631.9,0.00083738]
[1645348500691,0.454,2632.3,2631.9,0.00083738]
[1645348500994,0.454,2632.3,2630.7,0.1899]
[1645348500995,1.1748699,2631.6,2630.7,1.32701613]
[1645348501196,3.954,2631.5,2630.7,1.32701613]
[1645348501392,0.95149,2631.4,2630.7,1.32701613]
[1645348501657,1.754,2631.4,2630.7,1.32701613]
[1645348502053,0.754,2631.4,2630.7,1.32701613]
[1645348502653,0.754,2631.4,2631.1,1.05175471]
[1645348502852,0.754,2631.4,2630.7,0.1899]
[1645348503657,0.754,2631.4,2630.1,0.19]
[1645348503854,0.754,2631.4,2630.7,0.89362322]
[1645348504056,0.198744,2631.3,2630.7,0.89362322]
[1645348504256,0.198744,2631.3,2630.8,1.61671242]
[1645348505057,0.198744,2631.3,2630.9,0.00083559]
[1645348505996,0.198744,2631.3,2630.8,1.61671242]
[1645348506293,0.198744,2631.3,2631.0,0.00083557]
[1645348507095,0.198744,2631.3,2630.8,1.61671242]
[1645348507596,0.198744,2631.3,2631.0,0.00083555]
[1645348508004,0.454,2631.2,2631.0,0.00083555]
[1645348508203,0.454,2631.2,2629.7,0.95004315]
[1645348508204,22.5,2631.1,2630.0,1.61710415]
[1645348508404,22.5,2631.1,2629.6,3.69]
[1645348508405,0.454,2631.0,2630.1,1.61710415]
[1645348508697,0.454,2631.0,2630.2,1.61710415]
[1645348508698,2.054,2631.0,2630.2,1.61710415]
[1645348508903,2.054,2631.0,2629.5,6.71345427]
[1645348508904,0.86692832,2630.9,2629.5,6.0]
[1645348509158,0.86692832,2630.9,2629.2,1.67554315]
[1645348509159,0.9520254,2630.5,2630.3,1.69030882]
[1645348509354,0.54077277,2630.4,2629.2,0.7255]
[1645348509549,5.0,2630.2,2629.3,1.61759784]
[1645348509752,5.0,2630.2,2628.8,0.19]
[1645348509753,0.54097,2630.1,2628.8,0.19]
[1645348509952,0.54097,2630.1,2628.5,0.71345427]
[1645348509953,0.86434778,2629.9,2629.0,1.14247115]
[1645348510152,1.90461,2629.7,2629.0,1.14247115]
[1645348510351,0.54116,2629.8,2629.1,1.61782745]
[1645348510352,0.454,2629.8,2629.1,1.61782745]
[1645348510553,1.0,2629.9,2629.1,1.61782745]
[1645348510554,1.3,2629.9,2629.1,1.61782745]
[1645348510757,0.6,2629.9,2629.1,1.61782745]
[1645348511051,1.054,2630.2,2629.7,0.93738695]
[1645348511253,0.454,2630.2,2629.7,0.93738695]
[1645348511460,0.08792,2630.6,2629.8,1.61732656]
[1645348511651,0.454,2630.8,2629.8,1.61732656]
[1645348511853,1.90348,2631.0,2629.8,5.11732656]
[1645348512050,1.90348,2631.0,2629.9,0.53433254]
[1645348512249,1.90348,2631.0,2630.3,0.86580745]
[1645348513304,1.40561,2631.1,2630.7,1.15319878]
[1645348513502,2.74759829,2631.5,2630.7,1.15319878]
[1645348513503,0.198744,2631.3,2630.7,1.15319878]
[1645348513899,0.198744,2631.3,2630.5,0.00083362]
[1645348514503,0.198744,2631.3,2629.6,7.918]
[1645348514504,5.454,2631.2,2629.6,7.918]
[1645348514703,0.454,2631.2,2629.5,2.912]
[1645348514902,5.84011616,2631.2,2629.8,0.96242769]
[1645348515101,5.54011616,2631.2,2629.8,0.96242769]
[1645348515302,1.0,2631.1,2629.8,0.96242769]
[1645348515502,0.454,2631.0,2629.8,0.96242769]
[1645348515701,0.54011616,2631.0,2629.8,0.96242769]
[1645348515908,0.95183,2630.5,2629.2,2.991]
[1645348516102,0.454,2630.4,2630.3,0.00083369]
[1645348516945,0.454,2630.4,2628.9,0.19]
[1645348516946,1.6143062,2630.4,2628.9,0.19]
[1645348517151,0.95198,2630.1,2628.8,0.19]
[1645348517557,0.95198,2630.1,2628.7,2.991]
[1645348517558,0.454,2630.0,2628.7,2.991]
[1645348517947,1.02778393,2629.8,2628.8,0.95107815]
[1645348518149,0.454,2630.0,2628.8,0.95107815]
[1645348518553,0.454,2630.0,2629.2,0.00083404]
[1645348519351,0.454,2630.0,2628.8,0.95107815]
[1645348519554,0.454,2630.0,2629.5,0.00083396]
[1645348520593,0.454,2630.0,2628.6,6.7855]
[1645348520793,0.454,2630.0,2628.6,3.2855]
[1645348520992,0.454,2630.0,2629.6,0.00083391]
[1645348521796,0.454,2630.0,2629.3,1.11607901]
[1645348521995,0.454,2630.0,2629.7,0.00083389]
[1645348523002,0.454,2630.0,2628.6,3.2855]
[1645348523199,0.454,2630.0,2629.7,0.00083388]
[1645348524239,0.454,2630.0,2628.6,3.2855]
[1645348524440,0.454,2630.0,2629.7,0.00083388]
[1645348525143,1.6,2630.1,2629.7,0.00083388]
[1645348525144,1.0,2630.1,2629.7,0.00083388]
[1645348525345,7.5794972,2631.1,2629.5,0.88011273]
[1645348525346,1.0,2630.8,2629.5,0.88011273]
[1645348525546,1.3,2630.8,2629.5,0.88011273]
[1645348525744,0.6,2630.8,2629.7,0.00083388]
[1645348525940,0.454,2631.0,2629.7,0.00083388]
[1645348526642,0.454,2631.0,2629.0,11.42]
[1645348526842,0.454,2631.0,2630.2,0.00083372]
[1645348527041,0.95169,2630.9,2630.2,0.00083372]
[1645348527242,1.25169,2630.9,2630.2,0.00083372]
[1645348527891,1.25169,2630.9,2630.0,1.00826379]
[1645348528086,1.25169,2630.9,2630.4,0.00083365]
[1645348529004,0.95189,2630.4,2629.3,6.6351]
[1645348529192,1.40589,2630.4,2629.0,0.3]
[1645348529395,2.00589,2630.4,2629.0,3.5]
[1645348529786,2.00589,2630.4,2629.0,0.3]
[1645348529989,2.00589,2630.4,2629.5,0.99196395]
[1645348530489,2.00589,2630.4,2629.6,0.00083392]
[1645348530688,5.50589,2630.4,2629.6,0.00083392]
[1645348530890,1.0,2630.3,2629.6,0.00083392]
[1645348531291,3.00589,2630.4,2629.6,0.00083392]
[1645348531539,0.95202,2630.0,2628.8,6.489]
[1645348531840,0.95202,2630.0,2629.8,0.00083384]
[1645348532239,1.25202,2630.0,2629.8,0.00083384]
[1645348532441,0.95202,2630.0,2629.8,0.00083384]
[1645348532638,0.95202,2630.0,2629.6,0.98108832]
[1645348532847,2.054,2630.4,2629.8,0.00083386]
[1645348533040,3.00587,2630.4,2629.8,0.00083386]
[1645348533240,2.00587,2630.4,2629.8,0.00083386]
[1645348533445,1.0,2630.3,2629.8,0.00083386]
[1645348533941,2.00587,2630.4,2629.6,0.98108832]
[1645348534144,2.00587,2630.4,2629.9,0.00083381]
[1645348534342,2.9579044,2630.4,2629.9,0.00083381]
[1645348534544,1.95209,2630.3,2629.9,0.00083381]
[1645348534843,1.95209,2630.3,2628.6,6.4855]
[1645348534844,34.5,2630.1,2628.6,6.4855]
[1645348535042,0.95217,2629.7,2628.6,2.9855]
[1645348535291,0.454,2629.6,2629.2,0.9947742]
[1645348537192,1.25217,2629.7,2629.2,0.9947742]
[1645348537994,1.25217,2629.7,2628.5,7.32]
[1645348538394,2.25217,2629.7,2628.5,7.32]
[1645348539040,2.25217,2629.7,2629.1,0.84519617]
[1645348539541,2.25217,2629.7,2629.0,0.00083203]
[1645348539740,1.25217,2629.7,2628.5,7.32]
[1645348540141,2.25217,2629.7,2629.3,0.00083193]
[1645348540739,1.55217,2629.7,2629.3,0.00083193]
[1645348540942,2.55217,2629.7,2628.8,1.0865082]
[1645348541139,2.56281,2630.2,2628.8,1.0865082]
[1645348541348,0.454,2630.1,2629.4,0.0008319]
[1645348541945,0.95217,2629.7,2629.4,0.0008319]
[1645348542142,0.95217,2629.7,2629.3,0.93045376]
[1645348542342,0.95217,2629.7,2628.5,7.32]
[1645348542542,0.95217,2629.7,2629.6,0.00083182]
[1645348543198,1.25217,2629.7,2629.6,0.00083182]
[1645348543403,2.19123145,2629.7,2628.7,0.94480894]
[1645348543598,2.19123145,2629.7,2629.5,0.00083186]
[1645348543800,0.454,2629.6,2629.5,0.00083186]
[1645348544199,1.454,2629.6,2629.5,0.00083186]
[1645348544605,1.454,2629.6,2628.7,0.94480894]
[1645348545002,1.454,2629.6,2629.4,0.00083189]
[1645348545401,1.90453,2629.5,2629.4,0.00083189]
[1645348545803,3.50453,2629.5,2628.7,0.94480894]
[1645348546003,0.45237,2629.4,2628.7,0.94480894]
[1645348546201,0.45237,2629.4,2629.3,0.00083192]
[1645348546403,1.3,2629.5,2629.3,0.00083192]
[1645348546641,0.95226,2629.4,2629.3,0.00083192]
[1645348546840,2.8567,2630.1,2629.3,0.00083192]
[1645348547041,6.3567,2630.1,2628.7,0.94480894]
[1645348547246,6.3567,2630.1,2629.2,0.00083195]
[1645348547439,7.2556198,2630.1,2629.2,0.00083195]
[1645348547642,0.9521,2629.7,2629.2,0.00083195]
[1645348547841,3.5,2629.6,2629.2,0.00083195]
[1645348548043,1.90465,2629.5,2629.2,0.00083195]
[1645348548240,3.8,2629.4,2628.5,7.32]
[1645348548439,3.8,2629.4,2629.3,0.00083193]
[1645348548646,1.25231,2629.4,2629.3,0.00083193]
[1645348548840,1.40631,2629.4,2629.3,0.00083193]
[1645348549443,1.40631,2629.4,2628.6,0.90560751]
[1645348549640,1.40631,2629.4,2629.2,0.00083195]
[1645348549845,0.454,2629.4,2629.2,0.00083195]
[1645348550312,0.454,2629.4,2627.8,0.19]
[1645348550313,30.5,2629.2,2627.8,0.19]
[1645348550509,30.5,2629.2,2627.8,6.4265]
[1645348550510,3.954,2629.1,2627.8,6.4265]
[1645348550710,0.454,2629.1,2627.8,0.19]
[1645348550910,0.454,2629.1,2627.9,1.61821445]
[1645348551111,0.19890264,2629.5,2628.0,1.61821445]
[1645348551312,0.19890264,2629.5,2629.0,1.03127658]
[1645348551710,0.19890264,2629.5,2628.1,0.3]
[1645348551909,0.19890264,2629.5,2627.8,0.3823]
[1645348551910,0.19890264,2629.5,2628.2,1.6180256]
[1645348552109,3.69890264,2629.5,2628.2,1.6180256]
[1645348552310,4.29890264,2629.5,2627.9,1.6180256]
[1645348552516,0.454,2629.4,2628.0,1.61806209]
[1645348552712,0.454,2629.4,2627.6,2.42743031]
[1645348552713,0.454,2629.4,2628.6,1.19243283]
[1645348553110,0.9523,2629.2,2628.6,1.19243283]
[1645348553711,1.5523,2629.2,2628.6,1.19243283]
[1645348553911,0.9523,2629.2,2628.6,1.19243283]
[1645348554546,0.9523,2629.2,2628.8,0.00083001]
[1645348555150,1.5523,2629.2,2628.8,0.00083001]
[1645348555543,1.5523,2629.2,2628.6,1.19243283]
[1645348555744,0.3,2629.2,2628.9,0.00082998]
[1645348555945,3.04,2629.0,2628.9,0.00082998]
[1645348556345,4.04,2629.0,2628.9,0.00082998]
[1645348556743,4.04,2629.0,2627.8,1.9181192]
[1645348556944,4.04,2629.0,2628.8,0.00083]
[1645348557155,3.5,2628.9,2628.8,0.00083]
[1645348557547,4.254,2628.9,2628.8,0.00083]
[1645348558002,4.254,2628.9,2627.6,1.61832667]
[1645348558203,4.254,2628.9,2628.7,0.00083003]
[1645348558402,0.95258,2628.8,2628.7,0.00083003]
[1645348558603,1.40658,2628.8,2628.7,0.00083003]
[1645348559005,1.40658,2628.8,2628.0,0.92090481]
[1645348559404,1.40658,2628.8,2628.6,0.00083006]
[1645348559803,1.70658,2628.8,2628.6,0.00083006]
[1645348560204,0.754,2628.8,2628.6,0.00083006]
[1645348560414,4.04,2629.0,2628.1,3.5]
[1645348560609,3.04,2629.0,2628.6,0.00083008]
[1645348560810,3.5,2630.0,2628.7,11.0]
[1645348561010,3.5,2630.1,2628.8,18.28772552]
[1645348561209,3.5,2630.1,2628.9,0.01273799]
[1645348561408,3.5,2630.6,2629.8,0.99352623]
[1645348562254,0.6,2630.6,2629.3,0.00082984]
[1645348562456,1.0,2630.5,2629.3,0.00082984]
[1645348562655,4.54954031,2630.7,2629.0,1.7611]
[1645348562854,5.50136031,2630.7,2629.0,1.7611]
[1645348563058,2.00136031,2630.7,2629.4,0.00082983]
[1645348563553,2.00136031,2630.7,2629.7,1.18835389]
[1645348563554,2.08747647,2630.7,2629.7,1.18835389]
[1645348563954,2.68747647,2630.7,2629.7,1.18835389]
[1645348564160,1.0,2630.5,2629.7,1.18835389]
[1645348564355,1.3,2630.5,2629.7,1.18835389]
[1645348568604,1.3,2630.5,2630.1,0.98667764]
[1645348569063,4.63849252,2631.0,2630.1,0.98667764]
[1645348569064,0.17441616,2631.0,2630.1,0.98667764]
[1645348569255,0.0883,2631.3,2630.1,0.98667764]
[1645348569554,0.30544429,2631.4,2630.1,12.65667764]
[1645348569753,0.2768,2631.4,2630.3,11.67]
[1645348570150,0.2768,2631.4,2630.6,12.86341398]
[1645348570448,0.02864429,2632.1,2630.7,0.454]
[1645348570650,0.02864429,2632.2,2631.7,0.96652766]
[1645348570851,1.0,2632.3,2631.7,0.96652766]
[1645348572355,1.0,2632.3,2631.8,3.5]
[1645348572652,1.0,2632.3,2631.8,3.954]
[1645348572653,0.0588,2632.3,2631.8,3.954]
[1645348572907,0.0588,2632.3,2631.8,6.9502]
[1645348573498,0.0588,2632.3,2631.8,3.4502]
[1645348573711,0.0588,2632.3,2632.2,0.84895376]
[1645348574700,0.0588,2632.3,2631.8,2.9962]
[1645348574903,0.0588,2632.3,2630.8,7.57370385]
[1645348574904,0.0588,2632.3,2630.8,7.561]
[1645348575101,0.0588,2632.3,2630.9,2.9515]
[1645348575298,0.0588,2632.3,2630.9,6.4515]
[1645348575500,0.0588,2632.3,2630.9,2.9515]
[1645348575703,0.0588,2632.3,2631.8,0.84254341]
[1645348578347,0.0588,2632.3,2632.2,1.0792786]
[1645348578750,0.0588,2632.3,2632.2,0.49397827]
[1645348580702,0.01039816,2632.8,2632.2,0.49397827]
[1645348580905,0.08958,2632.9,2632.2,0.79397827]
[1645348581105,0.02864429,2632.9,2632.2,0.79397827]
[1645348581302,0.02864429,2633.2,2632.2,1.09397827]
[1645348581507,0.02864429,2633.2,2632.2,0.94797827]
[1645348581904,0.02864429,2633.2,2632.8,1.15650041]
[1645348582203,0.13819996,2633.3,2632.0,0.3]
[1645348582403,0.0389189,2633.2,2632.0,0.3]
[1645348583201,0.0389189,2633.2,2632.7,1.0976302]
[1645348583402,0.16684425,2633.3,2632.7,1.0976302]
[1645348583604,0.01027465,2633.1,2632.7,1.0976302]
[1645348584448,0.16941276,2633.3,2632.7,1.0976302]
[1645348584449,0.16684425,2633.3,2632.7,1.0976302]
[1645348584649,0.13819996,2633.3,2632.7,1.0976302]
[1645348584849,0.14079608,2633.3,2632.7,1.0976302]
[1645348585452,0.00259612,2633.3,2632.7,1.0976302]
[1645348585650,0.02864429,2633.5,2632.7,1.0976302]
[1645348585850,0.95059,2633.9,2632.7,1.0976302]
[1645348586049,0.00259621,2633.3,2632.7,1.0976302]
[1645348586850,0.02864429,2633.4,2632.7,1.0976302]
[1645348587050,1.6,2633.5,2632.7,1.0976302]
[1645348587250,0.00259621,2633.3,2632.7,1.0976302]
[1645348587451,0.00259621,2633.3,2633.1,0.88130978]
[1645348588093,1.01038388,2633.5,2632.2,3.5]
[1645348588094,1.0,2633.5,2632.2,3.5]
[1645348588295,0.00259634,2633.3,2632.2,0.6]
[1645348588497,0.00259634,2633.3,2632.2,0.3]
[1645348588695,0.00259634,2633.3,2632.1,2.4664]
[1645348589305,0.02864429,2633.4,2632.9,0.89832136]
[1645348589497,1.0,2633.5,2632.9,0.89832136]
[1645348589498,0.01038399,2633.2,2632.9,0.89832136]
[1645348590597,1.0,2633.5,2632.9,0.89832136]
[1645348590796,0.00259626,2633.3,2632.9,0.89832136]
[1645348591745,1.0,2633.5,2632.9,0.89832136]
[1645348592049,0.00254099,2633.3,2632.9,0.89832136]
[1645348592844,1.6,2633.5,2632.9,0.89832136]
[1645348593242,0.00254099,2633.3,2632.9,0.89832136]
[1645348594145,1.6,2633.5,2632.9,0.89832136]
[1645348595149,1.6,2633.5,2632.2,11.67]
[1645348595401,1.6,2633.5,2632.1,1.1664]
[1645348595402,0.02864429,2633.4,2632.1,1.1664]
[1645348595604,5.41094429,2633.4,2631.7,11.8437]
[1645348595802,0.01233936,2633.2,2631.7,5.5408]
[1645348596000,0.08988,2633.1,2631.6,3.1468]
[1645348596501,1.06628363,2632.8,2631.9,0.88708107]
[1645348596701,0.3,2632.7,2631.9,0.88708107]
[1645348596902,0.32864429,2632.7,2631.9,0.88708107]
[1645348597703,0.02864429,2632.7,2631.9,0.88708107]
[1645348597905,0.3,2632.8,2631.9,0.88708107]
[1645348598105,0.02864429,2632.7,2631.9,0.78692327]
[1645348598303,0.31026193,2632.8,2631.9,0.78692327]
[1645348598908,0.3,2632.8,2631.9,0.78692327]
[1645348599153,0.33890621,2632.9,2631.9,0.78692327]
[1645348599351,0.03890621,2632.9,2631.9,0.78692327]
[1645348600051,0.02864429,2632.9,2631.9,0.78692327]
[1645348600253,0.0387467,2632.9,2631.9,0.78692327]
[1645348601351,0.02864429,2632.9,2631.9,0.78692327]
[1645348601552,0.0387467,2632.9,2632.3,1.11959821]
[1645348601750,0.01010241,2632.9,2632.3,1.11959821]
[1645348602552,0.97956429,2633.1,2632.3,1.11959821]
[1645348602803,0.454,2633.0,2631.5,1.1743]
[1645348603003,0.48264429,2633.0,2631.5,1.1743]
[1645348603203,1.48264429,2633.0,2631.5,1.1743]
[1645348603503,0.48264429,2633.0,2631.5,1.1743]
[1645348603704,1.48264429,2633.0,2631.5,1.1743]
[1645348604106,0.00932699,2632.8,2632.1,1.14373602]
[1645348604312,0.00932699,2632.8,2631.5,1.1743]
[1645348604915,0.08831,2632.9,2631.5,1.1743]
[1645348605108,0.54231,2632.9,2631.5,1.1743]
[1645348605308,0.00932702,2632.7,2631.5,1.1743]
[1645348605512,0.00932702,2632.7,2631.8,0.84765134]
[1645348605712,1.39782042,2632.6,2631.3,1.2204]
[1645348605917,0.02864429,2632.5,2631.1,5.4242]
[1645348606116,0.454,2632.4,2630.8,0.1899]
[1645348606314,0.54231,2632.4,2630.9,1.61649805]
[1645348606581,0.54231,2632.4,2630.7,6.0095]
[1645348606582,0.08611616,2632.3,2630.7,6.0095]
[1645348606769,0.08611616,2632.3,2630.8,2.65710606]
[1645348606770,0.95142,2631.6,2630.8,2.65710606]
[1645348606969,1.40542,2631.6,2630.9,1.61665253]
[1645348607369,2.40542,2631.6,2630.9,1.61665253]
[1645348608771,2.40542,2631.6,2630.8,1.04051164]
[1645348609773,2.40542,2631.6,2630.9,1.61667363]
[1645348609972,1.40542,2631.6,2630.9,1.61667363]
[1645348610300,2.40542,2631.6,2630.9,1.61667363]
[1645348610797,2.40542,2631.6,2630.8,1.04051164]
[1645348611198,2.40542,2631.6,2630.9,1.61667824]
[1645348611399,1.40542,2631.6,2630.8,1.04051164]
[1645348611601,2.40542,2631.6,2630.9,1.61667703]
[1645348612198,1.40542,2631.6,2630.9,1.61667703]
[1645348612399,2.40542,2631.6,2630.9,1.61667703]
[1645348613001,1.40542,2631.6,2630.9,1.61667703]
[1645348613301,2.40542,2631.6,2630.9,1.61667703]
[1645348613499,1.40542,2631.6,2630.9,1.61667703]
[1645348613699,2.40542,2631.6,2630.9,1.61667703]
[1645348614451,1.40542,2631.6,2630.9,1.61667703]
[1645348614648,2.40542,2631.6,2630.9,1.61667703]
[1645348615749,1.40542,2631.6,2630.9,1.61667703]
[1645348615950,1.454,2631.6,2630.9,1.61667703]
[1645348616150,0.454,2631.6,2630.9,1.61667703]
[1645348616351,1.454,2631.6,2630.9,1.61667703]
[1645348616552,0.454,2631.6,2630.5,2.3731]
[1645348616752,1.454,2631.6,2630.6,1.61674632]
[1645348616952,1.454,2631.6,2630.3,14.1422]
[1645348617151,0.454,2631.6,2630.4,1.61677099]
[1645348617351,2.40543,2631.6,2630.5,1.61677099]
[1645348617551,1.40543,2631.6,2630.6,1.61677099]
[1645348617807,2.40543,2631.6,2630.8,0.88759111]
[1645348618008,1.40543,2631.6,2630.8,0.88759111]
[1645348618202,2.40543,2631.6,2630.8,0.88759111]
[1645348619303,1.40543,2631.6,2630.8,0.88759111]
[1645348619503,2.40543,2631.6,2630.8,0.88759111]
[1645348619704,2.40543,2631.6,2630.1,0.19]
[1645348619705,3.35949266,2631.6,2630.1,0.19]
[1645348619906,0.08831,2631.5,2629.8,4.1293]
[1645348620104,0.95165,2631.0,2629.9,3.5]
[1645348620303,0.95165,2631.0,2629.8,4.1293]
[1645348620304,1.25165,2631.0,2629.8,4.1293]
[1645348620509,1.55165,2631.0,2629.8,2.8981]
[1645348620705,1.16263447,2630.8,2629.9,0.86603807]
[1645348620904,1.16263447,2630.8,2629.8,2.62405704]
[1645348621106,0.454,2630.7,2629.6,7.8017]
[1645348621308,0.454,2630.7,2629.3,1.1569]
[1645348621564,4.45179,2630.6,2629.3,1.1569]
[1645348621749,0.454,2630.5,2629.3,1.1569]
[1645348621948,0.454,2630.5,2629.5,1.06101507]
[1645348621949,4.50610028,2630.4,2629.5,1.06101507]
[1645348622351,1.0,2630.3,2629.5,1.06101507]
[1645348622552,4.5,2630.3,2629.5,1.06101507]
[1645348622752,1.0,2630.3,2629.5,1.06101507]
[1645348622952,0.95194,2630.2,2629.5,1.06101507]
[1645348623157,1.0,2630.6,2629.5,1.06101507]
[1645348623354,1.0,2630.6,2629.5,1.36101507]
[1645348623753,1.0,2631.0,2629.5,1.36101507]
[1645348624157,1.0,2631.0,2630.2,0.94083961]
[1645348624754,1.6,2631.0,2629.4,0.79]
[1645348624954,3.5,2630.9,2629.4,0.79]
[1645348625152,3.8,2630.9,2629.4,0.79]
[1645348625405,1.0,2630.8,2629.4,0.79]
[1645348625609,1.41905631,2631.1,2629.4,12.46]
[1645348625805,3.5,2631.0,2629.4,0.79]
[1645348626000,3.5,2631.0,2629.4,0.49]
[1645348626200,0.08834,2631.0,2629.4,4.8]
[1645348626402,0.08834,2631.0,2629.3,1.4686]
[1645348626403,0.95169,2630.9,2629.3,1.4686]
[1645348626602,0.0883,2630.8,2629.4,0.3]
[1645348626803,0.95376403,2630.6,2629.7,0.91774227]
[1645348627401,0.3,2630.6,2629.7,0.91774227]
[1645348627604,1.5423,2630.8,2629.7,0.91774227]
[1645348628406,0.5423,2630.8,2629.7,0.91774227]
[1645348628604,1.5423,2630.8,2629.7,0.91774227]
[1645348628903,0.454,2630.8,2630.1,0.93868477]
[1645348629151,1.454,2630.8,2630.1,0.93868477]
[1645348629350,0.454,2630.8,2630.1,0.93868477]
[1645348629549,0.19878756,2630.7,2630.1,0.93868477]
[1645348630351,0.19878756,2630.7,2629.4,0.19]
[1645348630551,0.19878756,2630.7,2629.4,0.49]
[1645348630755,0.19878756,2630.7,2629.5,8.5]
[1645348630962,0.19878756,2630.7,2630.0,5.0]
[1645348631155,0.08812,2631.8,2630.2,11.67]
[1645348631354,0.19874776,2631.7,2630.3,3.5]
[1645348631555,0.19874776,2631.7,2630.3,15.47]
[1645348631752,0.19874776,2631.7,2631.4,1.03460943]
[1645348632154,0.13819996,2632.2,2630.6,5.0]
[1645348632155,0.13819996,2632.2,2630.7,3.5]
[1645348632352,0.33690737,2632.2,2630.7,1.49]
[1645348632797,0.33690737,2632.2,2630.7,0.49]
[1645348632997,0.33690737,2632.2,2630.7,3.99]
[1645348633199,0.33690737,2632.2,2630.7,3.69]
[1645348633200,0.13819996,2632.2,2630.7,3.69]
[1645348633399,0.08806,2632.1,2631.3,0.85545845]
[1645348634099,0.08806,2632.1,2630.6,1.6]
[1645348634504,0.08806,2632.1,2630.7,3.5]
[1645348634699,1.17767996,2632.2,2630.7,3.5]
[1645348634898,1.13959034,2631.9,2631.1,0.90222427]
[1645348635098,1.17767996,2632.2,2631.1,0.90222427]
[1645348635398,1.0,2632.1,2631.1,0.90222427]
[1645348635598,0.3,2632.1,2631.1,0.90222427]
[1645348635798,2.17767996,2632.2,2631.1,0.90222427]
[1645348636399,2.17767996,2632.2,2631.5,0.97630993]
[1645348636658,1.22646996,2632.2,2631.5,0.97630993]
[1645348636854,0.22646996,2632.2,2630.6,4.1]
[1645348637555,0.22646996,2632.2,2630.7,1.0]
[1645348637956,1.1954339,2632.2,2631.3,0.94504328]
[1645348638161,1.1071639,2632.2,2631.3,0.94504328]
[1645348638362,0.43819996,2632.2,2631.3,0.94504328]
[1645348640166,0.43819996,2632.2,2631.7,0.91544704]
[1645348640797,0.43819996,2632.2,2630.9,1.1491]
[1645348641497,0.43819996,2632.2,2631.0,3.5]
[1645348641997,0.43819996,2632.2,2631.6,1.01263784]
[1645348642197,0.43819996,2632.2,2631.0,3.5]
[1645348642396,0.43819996,2632.2,2630.9,1.1491]
[1645348642998,0.43819996,2632.2,2630.9,4.6491]
[1645348643198,0.43819996,2632.2,2631.4,1.17019555]
[1645348644558,0.43819996,2632.2,2631.8,0.95929412]
[1645348644758,0.3,2632.2,2631.8,0.95929412]
[1645348645159,0.30927983,2632.3,2631.8,0.95929412]
[1645348645359,0.02864429,2632.4,2631.1,17.431]
[1645348645561,0.02864429,2632.4,2631.1,17.72981009]
[1645348645761,0.02864429,2632.4,2631.2,1.61620728]
[1645348645962,0.00927984,2632.5,2631.7,5.0]
[1645348646164,0.00927984,2632.5,2632.1,5.0]
[1645348646363,0.00927984,2632.5,2632.1,19.321]
[1645348646565,0.00927984,2632.5,2632.3,1.07564096]
[1645348646761,0.00927984,2632.5,2632.3,18.38954096]
[1645348646961,0.00927984,2632.5,2632.3,13.68954096]
[1645348647163,0.00927984,2632.5,2632.3,1.71954096]
[1645348647363,3.52864429,2633.7,2632.3,1.71954096]
[1645348647562,3.52864429,2633.7,2632.8,0.95029062]
[1645348648420,1.0,2633.6,2632.8,0.95029062]
[1645348649426,3.5,2633.5,2632.3,2.8491]
[1645348649628,0.0025246,2633.3,2632.3,2.8491]